[Event "Titled Tuesday Blitz August 24 2021"]
[White "sganerdene"]
[Black "Timofeev, Artyom"]
[BlackFideId "4140419"]
[WhiteElo "2642"]
[BlackElo "2582"]
[Result "0-1"]
[Round "03"]
[TimeControl "180+1"]
[Date "2021.08.24"]
[WhiteClock "0:00:52"]
[BlackClock "0:00:56"]

1. e4 {[%clk 0:02:59]}  e6 {[%clk 0:02:59]} 2. d4 {[%clk 0:02:59]}  d5 {[%clk 0:03:00]} 3. Nc3 {[%clk 0:02:59]}  dxe4 {[%clk 0:03:00]} 4. Nxe4 {[%clk 0:02:59]}  Nd7 {[%clk 0:03:00]} 5. Nf3 {[%clk 0:02:59]}  Ngf6 {[%clk 0:03:00]} 6. Bg5 {[%clk 0:02:59]}  Be7 {[%clk 0:02:58]} 7. Bxf6 {[%clk 0:02:59]}  Nxf6 {[%clk 0:02:55]} 8. Nxf6+ {[%clk 0:03:00]}  Bxf6 {[%clk 0:02:52]} 9. Bd3 {[%clk 0:03:00]}  O-O {[%clk 0:02:48]} 10. Qe2 {[%clk 0:02:55]}  c5 {[%clk 0:02:47]} 11. O-O-O {[%clk 0:02:25]}  cxd4 {[%clk 0:02:46]} 12. Qe4 {[%clk 0:02:24]}  g6 {[%clk 0:02:46]} 13. h4 {[%clk 0:02:18]}  Bd7 {[%clk 0:02:46]} 14. Nxd4 {[%clk 0:02:17]}  Qb6 {[%clk 0:02:44]} 15. c3 {[%clk 0:02:08]}  Rac8 {[%clk 0:02:37]} 16. Bc2 {[%clk 0:02:08]}  e5 {[%clk 0:02:23]} 17. Nf3 {[%clk 0:02:01]}  Bf5 {[%clk 0:02:18]} 18. Qe2 {[%clk 0:02:01]}  e4 {[%clk 0:02:09]} 19. Nd4 {[%clk 0:02:00]}  Bxd4 {[%clk 0:01:52]} 20. Rxd4 {[%clk 0:02:01]}  e3 {[%clk 0:01:53]} 21. fxe3 {[%clk 0:01:55]}  Bxc2 {[%clk 0:01:50]} 22. Qxc2 {[%clk 0:01:56]}  Rfe8 {[%clk 0:01:49]} 23. Re1 {[%clk 0:01:53]}  Rc7 {[%clk 0:01:47]} 24. Kb1 {[%clk 0:01:52]}  Rce7 {[%clk 0:01:47]} 25. e4 {[%clk 0:01:51]}  Qf6 {[%clk 0:01:46]} 26. h5 {[%clk 0:01:47]}  Qh4 {[%clk 0:01:43]} 27. Qd2 {[%clk 0:01:44]}  Qxh5 {[%clk 0:01:41]} 28. a3 {[%clk 0:01:40]}  Qg4 {[%clk 0:01:39]} 29. Ka2 {[%clk 0:01:27]}  h5 {[%clk 0:01:34]} 30. Qf2 {[%clk 0:01:24]}  a6 {[%clk 0:01:31]} 31. a4 {[%clk 0:01:18]}  Rxe4 {[%clk 0:01:25]} 32. Rexe4 {[%clk 0:01:16]}  Rxe4 {[%clk 0:01:25]} 33. Rd8+ {[%clk 0:01:16]}  Kg7 {[%clk 0:01:24]} 34. Qc5 {[%clk 0:01:15]}  Qe6+ {[%clk 0:01:21]} 35. b3 {[%clk 0:01:01]}  Re2+ {[%clk 0:01:18]} 36. Ka1 {[%clk 0:01:02]}  Qe7 {[%clk 0:01:00]} 37. Qd4+ {[%clk 0:01:00]}  Qe5 {[%clk 0:01:00]} 38. Qxe5+ {[%clk 0:00:51]}  Rxe5 {[%clk 0:01:00]} 39. Rd7 {[%clk 0:00:52]}  Rg5 {[%clk 0:00:56]} 40. Rxb7 {[%clk 0:00:52]}  Rxg2 {[%clk 0:00:57]} 41. c4 {[%clk 0:00:52]}  h4 {[%clk 0:00:56]} 0-1


[Site "https://www.chess.com"]

[Event "Titled Tuesday Blitz August 24 2021"]
[White "Aldokhin, Ivan"]
[Black "Bortnyk, Olexandr"]
[WhiteFideId "24115720"]
[BlackFideId "14120828"]
[WhiteElo "2306"]
[BlackElo "2723"]
[Result "0-1"]
[Round "04"]
[TimeControl "180+1"]
[Date "2021.08.24"]
[WhiteClock "0:00:02"]
[BlackClock "0:00:13"]

1. e4 {[%clk 0:03:00]}  e5 {[%clk 0:02:56]} 2. Nf3 {[%clk 0:03:00]}  Nc6 {[%clk 0:02:56]} 3. Bb5 {[%clk 0:03:00]}  Nge7 {[%clk 0:02:53]} 4. Nc3 {[%clk 0:03:00]}  g6 {[%clk 0:02:51]} 5. d4 {[%clk 0:02:59]}  exd4 {[%clk 0:02:49]} 6. Nd5 {[%clk 0:02:59]}  Bg7 {[%clk 0:02:48]} 7. Bg5 {[%clk 0:02:59]}  h6 {[%clk 0:02:40]} 8. Bf6 {[%clk 0:02:59]}  Bxf6 {[%clk 0:02:23]} 9. Nxf6+ {[%clk 0:02:58]}  Kf8 {[%clk 0:02:24]} 10. O-O {[%clk 0:02:25]}  a6 {[%clk 0:02:18]} 11. Bc4 {[%clk 0:02:11]}  d6 {[%clk 0:02:10]} 12. Nxd4 {[%clk 0:02:00]}  Kg7 {[%clk 0:01:49]} 13. Nd5 {[%clk 0:02:00]}  Nxd5 {[%clk 0:01:47]} 14. Bxd5 {[%clk 0:01:40]}  Nxd4 {[%clk 0:01:47]} 15. Qxd4+ {[%clk 0:01:39]}  Qf6 {[%clk 0:01:48]} 16. Qb4 {[%clk 0:01:24]}  a5 {[%clk 0:01:42]} 17. Qd2 {[%clk 0:01:12]}  Re8 {[%clk 0:01:40]} 18. Rae1 {[%clk 0:00:59]}  Qxb2 {[%clk 0:01:36]} 19. f4 {[%clk 0:00:47]}  Qb4 {[%clk 0:01:06]} 20. c3 {[%clk 0:00:46]}  Qc5+ {[%clk 0:01:04]} 21. Kh1 {[%clk 0:00:47]}  c6 {[%clk 0:00:59]} 22. Bb3 {[%clk 0:00:35]}  Be6 {[%clk 0:00:56]} 23. Bc2 {[%clk 0:00:23]}  Bc4 {[%clk 0:00:54]} 24. Rf3 {[%clk 0:00:22]}  b5 {[%clk 0:00:39]} 25. f5 {[%clk 0:00:22]}  g5 {[%clk 0:00:39]} 26. f6+ {[%clk 0:00:18]}  Kg8 {[%clk 0:00:28]} 27. Rh3 {[%clk 0:00:18]}  Qe5 {[%clk 0:00:25]} 28. Rxh6 {[%clk 0:00:18]}  Re6 {[%clk 0:00:25]} 29. Rh5 {[%clk 0:00:13]}  Qxf6 {[%clk 0:00:24]} 30. Rxg5+ {[%clk 0:00:13]}  Kf8 {[%clk 0:00:24]} 31. e5 {[%clk 0:00:13]}  dxe5 {[%clk 0:00:22]} 32. Rf5 {[%clk 0:00:11]}  Qh4 {[%clk 0:00:22]} 33. Qe3 {[%clk 0:00:07]}  Rd8 {[%clk 0:00:19]} 34. Rg1 {[%clk 0:00:03]}  Bd5 {[%clk 0:00:12]} 35. Qc5+ {[%clk 0:00:02]}  Rdd6 {[%clk 0:00:12]} 36. Qe3 {[%clk 0:00:02]}  Rh6 {[%clk 0:00:12]} 37. h3 {[%clk 0:00:02]}  Qxh3+ {[%clk 0:00:13]} 38. Qxh3 {[%clk 0:00:02]}  Rxh3# {[%clk 0:00:13]} 0-1


[Site "https://www.chess.com"]

[Event "Titled Tuesday Blitz August 24 2021"]
[White "Andreikin, Dmitry"]
[Black "Costachi, Mihnea"]
[WhiteFideId "4158814"]
[BlackFideId "1217518"]
[WhiteElo "2782"]
[BlackElo "2482"]
[Result "1-0"]
[Round "04"]
[TimeControl "180+1"]
[Date "2021.08.24"]
[WhiteClock "0:00:44"]
[BlackClock "0:00:31"]

1. d4 {[%clk 0:03:00]}  Nf6 {[%clk 0:03:00]} 2. c4 {[%clk 0:03:00]}  g6 {[%clk 0:03:01]} 3. Nc3 {[%clk 0:03:00]}  Bg7 {[%clk 0:03:02]} 4. e4 {[%clk 0:03:00]}  O-O {[%clk 0:03:03]} 5. Be3 {[%clk 0:02:57]}  d6 {[%clk 0:03:03]} 6. h3 {[%clk 0:02:57]}  b6 {[%clk 0:02:57]} 7. Bd3 {[%clk 0:02:50]}  c5 {[%clk 0:02:52]} 8. d5 {[%clk 0:02:50]}  e6 {[%clk 0:02:50]} 9. Nf3 {[%clk 0:02:48]}  exd5 {[%clk 0:02:51]} 10. exd5 {[%clk 0:02:49]}  Re8 {[%clk 0:02:48]} 11. Qd2 {[%clk 0:02:48]}  Nbd7 {[%clk 0:02:46]} 12. O-O {[%clk 0:02:47]}  Ne5 {[%clk 0:02:46]} 13. Nxe5 {[%clk 0:02:45]}  Rxe5 {[%clk 0:02:47]} 14. Bf4 {[%clk 0:02:42]}  Re8 {[%clk 0:02:46]} 15. Nb5 {[%clk 0:02:38]}  Bf8 {[%clk 0:02:35]} 16. Bg5 {[%clk 0:02:38]}  Be7 {[%clk 0:02:18]} 17. Rae1 {[%clk 0:02:35]}  Bd7 {[%clk 0:02:18]} 18. Rxe7 {[%clk 0:02:13]}  Qxe7 {[%clk 0:02:10]} 19. Nc7 {[%clk 0:02:14]}  Ne4 {[%clk 0:02:03]} 20. Bxe4 {[%clk 0:01:59]}  Qxe4 {[%clk 0:02:03]} 21. Nxa8 {[%clk 0:01:40]}  Rxa8 {[%clk 0:02:04]} 22. Re1 {[%clk 0:01:35]}  Qxc4 {[%clk 0:02:02]} 23. Bf6 {[%clk 0:01:33]}  Qb4 {[%clk 0:01:51]} 24. Bc3 {[%clk 0:01:25]}  Qh4 {[%clk 0:01:52]} 25. Qe3 {[%clk 0:01:19]}  b5 {[%clk 0:01:29]} 26. b3 {[%clk 0:01:14]}  b4 {[%clk 0:01:27]} 27. Bb2 {[%clk 0:01:14]}  a5 {[%clk 0:01:28]} 28. g3 {[%clk 0:01:12]}  Qxh3 {[%clk 0:00:44]} 29. Qf4 {[%clk 0:00:54]}  Re8 {[%clk 0:00:34]} 30. Rxe8+ {[%clk 0:00:50]}  Bxe8 {[%clk 0:00:35]} 31. Qf6 {[%clk 0:00:49]}  Kf8 {[%clk 0:00:36]} 32. Qxd6+ {[%clk 0:00:49]}  Kg8 {[%clk 0:00:36]} 33. Qf6 {[%clk 0:00:44]}  Kf8 {[%clk 0:00:36]} 34. d6 {[%clk 0:00:45]}  Bb5 {[%clk 0:00:31]} 35. Qh8# {[%clk 0:00:44]} 1-0


[Site "https://www.chess.com"]

[Event "Titled Tuesday Blitz August 24 2021"]
[White "Anuj Shrivatri"]
[Black "Svane, Rasmus"]
[WhiteFideId "35070924"]
[BlackFideId "4657101"]
[WhiteElo "2038"]
[BlackElo "2669"]
[Result "0-1"]
[Round "04"]
[TimeControl "180+1"]
[Date "2021.08.24"]
[WhiteClock "0:00:09"]
[BlackClock "0:00:08"]

1. d4 {[%clk 0:03:00]}  d5 {[%clk 0:02:59]} 2. c4 {[%clk 0:02:37]}  e6 {[%clk 0:02:58]} 3. Nf3 {[%clk 0:02:37]}  a6 {[%clk 0:02:59]} 4. Bg5 {[%clk 0:02:34]}  Be7 {[%clk 0:02:58]} 5. Bxe7 {[%clk 0:02:35]}  Nxe7 {[%clk 0:02:59]} 6. Nbd2 {[%clk 0:02:35]}  O-O {[%clk 0:02:59]} 7. g3 {[%clk 0:02:36]}  Nd7 {[%clk 0:02:55]} 8. Bg2 {[%clk 0:02:36]}  c5 {[%clk 0:02:54]} 9. cxd5 {[%clk 0:02:35]}  Nxd5 {[%clk 0:02:54]} 10. O-O {[%clk 0:02:35]}  b5 {[%clk 0:02:48]} 11. Rc1 {[%clk 0:02:30]}  c4 {[%clk 0:02:41]} 12. Nb1 {[%clk 0:02:11]}  Bb7 {[%clk 0:02:38]} 13. b3 {[%clk 0:02:11]}  cxb3 {[%clk 0:02:14]} 14. axb3 {[%clk 0:02:09]}  Qb6 {[%clk 0:02:11]} 15. Qd2 {[%clk 0:02:08]}  a5 {[%clk 0:02:02]} 16. Rfe1 {[%clk 0:02:05]}  b4 {[%clk 0:01:55]} 17. e4 {[%clk 0:02:01]}  N5f6 {[%clk 0:01:55]} 18. e5 {[%clk 0:02:00]}  Nd5 {[%clk 0:01:36]} 19. Qg5 {[%clk 0:01:58]}  a4 {[%clk 0:01:19]} 20. Nbd2 {[%clk 0:01:50]}  axb3 {[%clk 0:01:15]} 21. Nxb3 {[%clk 0:01:36]}  Ra3 {[%clk 0:00:59]} 22. Nbd2 {[%clk 0:01:31]}  Qd8 {[%clk 0:00:52]} 23. Qxd8 {[%clk 0:01:26]}  Rxd8 {[%clk 0:00:53]} 24. Nc4 {[%clk 0:01:27]}  Ra2 {[%clk 0:00:51]} 25. Nd6 {[%clk 0:01:24]}  Ba6 {[%clk 0:00:39]} 26. Ng5 {[%clk 0:00:42]}  Nc3 {[%clk 0:00:38]} 27. Bf3 {[%clk 0:00:41]}  Rf8 {[%clk 0:00:33]} 28. Nge4 {[%clk 0:00:41]}  Nd5 {[%clk 0:00:27]} 29. Ng5 {[%clk 0:00:35]}  Nc3 {[%clk 0:00:22]} 30. Nge4 {[%clk 0:00:34]}  Ne2+ {[%clk 0:00:21]} 31. Bxe2 {[%clk 0:00:34]}  Bxe2 {[%clk 0:00:22]} 32. Rc7 {[%clk 0:00:30]}  Nb6 {[%clk 0:00:22]} 33. Ng5 {[%clk 0:00:27]}  Bh5 {[%clk 0:00:20]} 34. Rb7 {[%clk 0:00:23]}  Nd5 {[%clk 0:00:20]} 35. Rc1 {[%clk 0:00:22]}  h6 {[%clk 0:00:20]} 36. Nge4 {[%clk 0:00:20]}  Bf3 {[%clk 0:00:19]} 37. Nc5 {[%clk 0:00:16]}  Nc3 {[%clk 0:00:17]} 38. Re1 {[%clk 0:00:13]}  Ne2+ {[%clk 0:00:16]} 39. Kf1 {[%clk 0:00:13]}  Bxb7 {[%clk 0:00:15]} 40. Ncxb7 {[%clk 0:00:11]}  Nxd4 {[%clk 0:00:15]} 41. Rb1 {[%clk 0:00:12]}  b3 {[%clk 0:00:15]} 42. Ne4 {[%clk 0:00:10]}  Rb8 {[%clk 0:00:13]} 43. Nec5 {[%clk 0:00:10]}  b2 {[%clk 0:00:11]} 44. Kg2 {[%clk 0:00:10]}  Nb5 {[%clk 0:00:08]} 45. Rd1 {[%clk 0:00:09]}  Nc3 {[%clk 0:00:08]} 0-1


[Site "https://www.chess.com"]

[Event "Titled Tuesday Blitz August 24 2021"]
[White "Arabidze, Meri"]
[Black "Balakrishnan, Praveen"]
[WhiteFideId "13604040"]
[BlackFideId "2064871"]
[WhiteElo "2432"]
[BlackElo "2237"]
[Result "0-1"]
[Round "04"]
[TimeControl "180+1"]
[Date "2021.08.24"]
[WhiteClock "0:01:54"]
[BlackClock "0:02:02"]

1. Nf3 {[%clk 0:03:00]}  g6 {[%clk 0:02:56]} 2. g3 {[%clk 0:03:01]}  Bg7 {[%clk 0:02:56]} 3. Bg2 {[%clk 0:03:02]}  d6 {[%clk 0:02:53]} 4. O-O {[%clk 0:03:02]}  e5 {[%clk 0:02:48]} 5. d3 {[%clk 0:03:02]}  f5 {[%clk 0:02:48]} 6. c4 {[%clk 0:03:02]}  Nf6 {[%clk 0:02:47]} 7. Nc3 {[%clk 0:03:02]}  O-O {[%clk 0:02:46]} 8. Ne1 {[%clk 0:03:00]}  c6 {[%clk 0:02:45]} 9. Nc2 {[%clk 0:03:00]}  a5 {[%clk 0:02:44]} 10. d4 {[%clk 0:02:58]}  e4 {[%clk 0:02:45]} 11. d5 {[%clk 0:02:56]}  c5 {[%clk 0:02:40]} 12. Bf4 {[%clk 0:02:53]}  Nh5 {[%clk 0:02:36]} 13. Be3 {[%clk 0:02:39]}  Nd7 {[%clk 0:02:36]} 14. Nb5 {[%clk 0:02:38]}  Ne5 {[%clk 0:02:30]} 15. b3 {[%clk 0:02:37]}  Ng4 {[%clk 0:02:17]} 16. Rb1 {[%clk 0:02:24]}  f4 {[%clk 0:02:16]} 17. Bd2 {[%clk 0:02:11]}  e3 {[%clk 0:02:10]} 18. fxe3 {[%clk 0:02:07]}  fxg3 {[%clk 0:02:09]} 19. hxg3 {[%clk 0:01:58]}  Nxg3 {[%clk 0:02:06]} 20. Rxf8+ {[%clk 0:01:58]}  Qxf8 {[%clk 0:02:06]} 21. Be1 {[%clk 0:01:57]}  Be5 {[%clk 0:02:03]} 22. Bf3 {[%clk 0:01:54]}  Qh6 {[%clk 0:02:02]} 0-1


[Site "https://www.chess.com"]

[Event "Titled Tuesday Blitz August 24 2021"]
[White "Bilan, Danila"]
[Black "Lazavik, Denis"]
[WhiteFideId "24161918"]
[BlackFideId "13515110"]
[WhiteElo "2164"]
[BlackElo "2436"]
[Result "1/2-1/2"]
[Round "04"]
[TimeControl "180+1"]
[Date "2021.08.24"]
[WhiteClock "0:00:07"]
[BlackClock "0:00:06"]

1. d4 {[%clk 0:03:00]}  d5 {[%clk 0:02:59]} 2. Nf3 {[%clk 0:03:00]}  Nf6 {[%clk 0:02:59]} 3. c4 {[%clk 0:03:00]}  c6 {[%clk 0:02:59]} 4. Nc3 {[%clk 0:03:00]}  dxc4 {[%clk 0:02:59]} 5. a4 {[%clk 0:03:00]}  Bf5 {[%clk 0:02:59]} 6. e3 {[%clk 0:03:00]}  e6 {[%clk 0:02:59]} 7. Bxc4 {[%clk 0:03:01]}  Bb4 {[%clk 0:02:59]} 8. O-O {[%clk 0:03:01]}  O-O {[%clk 0:03:00]} 9. Qe2 {[%clk 0:03:01]}  Bg6 {[%clk 0:02:57]} 10. Bd3 {[%clk 0:03:01]}  Nbd7 {[%clk 0:02:44]} 11. Bxg6 {[%clk 0:02:56]}  hxg6 {[%clk 0:02:44]} 12. Rd1 {[%clk 0:02:57]}  Qe7 {[%clk 0:02:37]} 13. e4 {[%clk 0:02:51]}  e5 {[%clk 0:02:37]} 14. d5 {[%clk 0:02:48]}  cxd5 {[%clk 0:02:12]} 15. Nxd5 {[%clk 0:02:46]}  Nxd5 {[%clk 0:02:12]} 16. Rxd5 {[%clk 0:02:45]}  a5 {[%clk 0:01:02]} 17. Bg5 {[%clk 0:02:33]}  f6 {[%clk 0:00:57]} 18. Be3 {[%clk 0:02:27]}  Rfd8 {[%clk 0:00:55]} 19. Rad1 {[%clk 0:02:22]}  Nf8 {[%clk 0:00:55]} 20. Qb5 {[%clk 0:01:46]}  Rxd5 {[%clk 0:00:43]} 21. Rxd5 {[%clk 0:01:32]}  Rc8 {[%clk 0:00:38]} 22. h3 {[%clk 0:01:22]}  Rc6 {[%clk 0:00:32]} 23. Nd2 {[%clk 0:01:01]}  Ne6 {[%clk 0:00:29]} 24. Nb3 {[%clk 0:00:51]}  Nc7 {[%clk 0:00:28]} 25. Qxb7 {[%clk 0:00:51]}  Nxd5 {[%clk 0:00:26]} 26. Qxc6 {[%clk 0:00:46]}  Nxe3 {[%clk 0:00:27]} 27. fxe3 {[%clk 0:00:47]}  Kh7 {[%clk 0:00:23]} 28. Qd5 {[%clk 0:00:41]}  Qc7 {[%clk 0:00:22]} 29. Qd3 {[%clk 0:00:32]}  Qc6 {[%clk 0:00:21]} 30. h4 {[%clk 0:00:25]}  Qxa4 {[%clk 0:00:20]} 31. Kh2 {[%clk 0:00:23]}  Qc6 {[%clk 0:00:19]} 32. Na1 {[%clk 0:00:21]}  Qe6 {[%clk 0:00:17]} 33. Nc2 {[%clk 0:00:20]}  Be7 {[%clk 0:00:17]} 34. Qd5 {[%clk 0:00:20]}  Qg4 {[%clk 0:00:16]} 35. Qxa5 {[%clk 0:00:12]}  Qxh4+ {[%clk 0:00:16]} 36. Kg1 {[%clk 0:00:12]}  Qxe4 {[%clk 0:00:17]} 37. Qd2 {[%clk 0:00:11]}  Qc4 {[%clk 0:00:15]} 38. Qf2 {[%clk 0:00:07]}  Qb3 {[%clk 0:00:11]} 39. Ne1 {[%clk 0:00:07]}  Bc5 {[%clk 0:00:10]} 40. Nc2 {[%clk 0:00:06]}  Qd3 {[%clk 0:00:07]} 41. Kh2 {[%clk 0:00:02]}  Kg8 {[%clk 0:00:05]} 42. b4 {[%clk 0:00:03]}  Bb6 {[%clk 0:00:05]} 43. g3 {[%clk 0:00:01]}  g5 {[%clk 0:00:05]} 44. Qg2 {[%clk 0:00:02]}  g4 {[%clk 0:00:05]} 45. Qa8+ {[%clk 0:00:02]}  Kh7 {[%clk 0:00:05]} 46. Qg2 {[%clk 0:00:03]}  e4 {[%clk 0:00:04]} 47. Qf2 {[%clk 0:00:02]}  f5 {[%clk 0:00:05]} 48. Qxf5+ {[%clk 0:00:03]}  g6 {[%clk 0:00:02]} 49. Qf7+ {[%clk 0:00:03]}  Kh6 {[%clk 0:00:03]} 50. Qf8+ {[%clk 0:00:03]}  Kg5 {[%clk 0:00:02]} 51. Qf4+ {[%clk 0:00:04]}  Kh5 {[%clk 0:00:03]} 52. Qe5+ {[%clk 0:00:05]}  Kh6 {[%clk 0:00:03]} 53. Qh8+ {[%clk 0:00:05]}  Kg5 {[%clk 0:00:04]} 54. Qe5+ {[%clk 0:00:06]}  Kh6 {[%clk 0:00:05]} 55. Qh8+ {[%clk 0:00:06]}  Kg5 {[%clk 0:00:06]} 56. Qe5+ {[%clk 0:00:07]}  Kh6 {[%clk 0:00:06]} 1/2-1/2


[Site "https://www.chess.com"]

[Event "Titled Tuesday Blitz August 24 2021"]
[White "Bok, Benjamin"]
[Black "Darini, Pouria"]
[WhiteFideId "1017063"]
[BlackFideId "12502200"]
[WhiteElo "2658"]
[BlackElo "2489"]
[Result "1-0"]
[Round "04"]
[TimeControl "180+1"]
[Date "2021.08.24"]
[WhiteClock "0:00:30"]
[BlackClock "0:00:02"]

1. d4 {[%clk 0:03:00]}  Nf6 {[%clk 0:02:59]} 2. c4 {[%clk 0:03:00]}  g6 {[%clk 0:03:00]} 3. Nf3 {[%clk 0:03:00]}  Bg7 {[%clk 0:03:00]} 4. g3 {[%clk 0:03:00]}  O-O {[%clk 0:03:00]} 5. Bg2 {[%clk 0:03:01]}  d5 {[%clk 0:03:01]} 6. O-O {[%clk 0:03:00]}  c6 {[%clk 0:03:02]} 7. b3 {[%clk 0:03:00]}  Bf5 {[%clk 0:03:01]} 8. Bb2 {[%clk 0:02:59]}  Nbd7 {[%clk 0:03:00]} 9. e3 {[%clk 0:02:59]}  a5 {[%clk 0:02:52]} 10. Nc3 {[%clk 0:02:58]}  Ne4 {[%clk 0:02:52]} 11. Qe2 {[%clk 0:02:58]}  Nxc3 {[%clk 0:02:52]} 12. Bxc3 {[%clk 0:02:59]}  Be4 {[%clk 0:02:53]} 13. cxd5 {[%clk 0:02:54]}  cxd5 {[%clk 0:02:51]} 14. Qb5 {[%clk 0:02:54]}  Qc7 {[%clk 0:02:30]} 15. Rfc1 {[%clk 0:02:53]}  Qc6 {[%clk 0:02:28]} 16. Qxc6 {[%clk 0:02:42]}  bxc6 {[%clk 0:02:29]} 17. Ne1 {[%clk 0:02:42]}  Rfc8 {[%clk 0:02:00]} 18. Bh3 {[%clk 0:02:05]}  Bf5 {[%clk 0:01:47]} 19. Bxf5 {[%clk 0:02:03]}  gxf5 {[%clk 0:01:48]} 20. Nd3 {[%clk 0:01:53]}  c5 {[%clk 0:01:27]} 21. dxc5 {[%clk 0:01:52]}  Nxc5 {[%clk 0:01:27]} 22. Nxc5 {[%clk 0:01:50]}  Rxc5 {[%clk 0:01:27]} 23. Bxg7 {[%clk 0:01:50]}  Rxc1+ {[%clk 0:01:27]} 24. Rxc1 {[%clk 0:01:50]}  Kxg7 {[%clk 0:01:28]} 25. Rc5 {[%clk 0:01:49]}  e6 {[%clk 0:01:20]} 26. a4 {[%clk 0:01:42]}  Kf6 {[%clk 0:01:14]} 27. Rb5 {[%clk 0:01:42]}  Rc8 {[%clk 0:00:45]} 28. Rxa5 {[%clk 0:01:39]}  Rb8 {[%clk 0:00:44]} 29. Rb5 {[%clk 0:01:09]}  Rxb5 {[%clk 0:00:44]} 30. axb5 {[%clk 0:01:10]}  Ke5 {[%clk 0:00:44]} 31. Kf1 {[%clk 0:01:09]}  Kd6 {[%clk 0:00:44]} 32. b4 {[%clk 0:01:02]}  Kc7 {[%clk 0:00:39]} 33. Ke2 {[%clk 0:01:03]}  Kb6 {[%clk 0:00:34]} 34. Kd3 {[%clk 0:01:03]}  Kxb5 {[%clk 0:00:26]} 35. Kc3 {[%clk 0:01:04]}  e5 {[%clk 0:00:25]} 36. Kb3 {[%clk 0:01:02]}  f6 {[%clk 0:00:14]} 37. f3 {[%clk 0:00:58]}  d4 {[%clk 0:00:09]} 38. exd4 {[%clk 0:00:57]}  exd4 {[%clk 0:00:09]} 39. h3 {[%clk 0:00:43]}  h6 {[%clk 0:00:08]} 40. g4 {[%clk 0:00:35]}  fxg4 {[%clk 0:00:02]} 41. hxg4 {[%clk 0:00:27]}  d3 {[%clk 0:00:01]} 42. Kc3 {[%clk 0:00:27]}  d2 {[%clk 0:00:02]} 43. Kxd2 {[%clk 0:00:28]}  Kxb4 {[%clk 0:00:03]} 44. Kd3 {[%clk 0:00:29]}  Kc5 {[%clk 0:00:03]} 45. Ke4 {[%clk 0:00:29]}  Kd6 {[%clk 0:00:03]} 46. Kf5 {[%clk 0:00:30]}  Ke7 {[%clk 0:00:04]} 47. Kg6 {[%clk 0:00:30]}  Ke6 {[%clk 0:00:02]} 48. Kxh6 {[%clk 0:00:30]} 1-0


[Site "https://www.chess.com"]

[Event "Titled Tuesday Blitz August 24 2021"]
[White "Borsuk, Konstantin"]
[Black "Dmitrenko, Viktor"]
[WhiteFideId "14113406"]
[BlackFideId "14110270"]
[WhiteElo "2382"]
[BlackElo "2338"]
[Result "1-0"]
[Round "04"]
[TimeControl "180+1"]
[Date "2021.08.24"]
[WhiteClock "0:00:08"]
[BlackClock "0:00:02"]

1. d4 {[%clk 0:03:00]}  e6 {[%clk 0:02:37]} 2. c4 {[%clk 0:03:01]}  d5 {[%clk 0:02:37]} 3. Nc3 {[%clk 0:03:01]}  a6 {[%clk 0:02:34]} 4. e3 {[%clk 0:02:59]}  Nf6 {[%clk 0:02:32]} 5. Nf3 {[%clk 0:02:59]}  dxc4 {[%clk 0:02:31]} 6. Bxc4 {[%clk 0:02:59]}  b5 {[%clk 0:02:30]} 7. Bd3 {[%clk 0:02:58]}  b4 {[%clk 0:02:30]} 8. Ne4 {[%clk 0:02:56]}  Nbd7 {[%clk 0:02:29]} 9. Ng3 {[%clk 0:02:52]}  Bb7 {[%clk 0:02:27]} 10. e4 {[%clk 0:02:52]}  c5 {[%clk 0:02:27]} 11. e5 {[%clk 0:02:46]}  Nd5 {[%clk 0:02:25]} 12. Bg5 {[%clk 0:02:47]}  Qb6 {[%clk 0:02:19]} 13. O-O {[%clk 0:02:42]}  cxd4 {[%clk 0:02:17]} 14. Rc1 {[%clk 0:02:39]}  h6 {[%clk 0:02:15]} 15. Bd2 {[%clk 0:02:39]}  Nc5 {[%clk 0:02:02]} 16. Bb1 {[%clk 0:02:38]}  d3 {[%clk 0:01:59]} 17. Re1 {[%clk 0:02:36]}  Be7 {[%clk 0:01:58]} 18. Rc4 {[%clk 0:02:27]}  a5 {[%clk 0:01:53]} 19. Rg4 {[%clk 0:02:26]}  g5 {[%clk 0:01:49]} 20. Ne4 {[%clk 0:02:20]}  O-O-O {[%clk 0:01:33]} 21. Nxc5 {[%clk 0:02:16]}  Bxc5 {[%clk 0:01:32]} 22. Rf1 {[%clk 0:02:12]}  Ne7 {[%clk 0:01:10]} 23. a3 {[%clk 0:02:10]}  Kb8 {[%clk 0:01:09]} 24. axb4 {[%clk 0:02:10]}  axb4 {[%clk 0:01:09]} 25. Qb3 {[%clk 0:01:43]}  Bxf3 {[%clk 0:01:06]} 26. gxf3 {[%clk 0:01:40]}  Nc6 {[%clk 0:01:06]} 27. Kg2 {[%clk 0:01:23]}  Rd5 {[%clk 0:00:54]} 28. Rc1 {[%clk 0:01:15]}  Rhd8 {[%clk 0:00:51]} 29. Qa4 {[%clk 0:01:11]}  Nxe5 {[%clk 0:00:49]} 30. Re4 {[%clk 0:01:11]}  f5 {[%clk 0:00:33]} 31. Ree1 {[%clk 0:01:03]}  Bxf2 {[%clk 0:00:32]} 32. Rxe5 {[%clk 0:00:59]}  Rxe5 {[%clk 0:00:30]} 33. Rc6 {[%clk 0:00:55]}  Qd4 {[%clk 0:00:23]} 34. Ra6 {[%clk 0:00:48]}  Qd5 {[%clk 0:00:12]} 35. Ba2 {[%clk 0:00:15]}  Qb7 {[%clk 0:00:12]} 36. Rxe6 {[%clk 0:00:14]}  Rxe6 {[%clk 0:00:11]} 37. Bxe6 {[%clk 0:00:14]}  Bc5 {[%clk 0:00:11]} 38. Bxf5 {[%clk 0:00:13]}  h5 {[%clk 0:00:10]} 39. Be4 {[%clk 0:00:14]}  Qa7 {[%clk 0:00:10]} 40. Qb5+ {[%clk 0:00:14]}  Qb6 {[%clk 0:00:10]} 41. Qa4 {[%clk 0:00:14]}  Qa7 {[%clk 0:00:10]} 42. Qc6 {[%clk 0:00:14]}  Qb6 {[%clk 0:00:08]} 43. Qa8+ {[%clk 0:00:09]}  Kc7 {[%clk 0:00:08]} 44. Qa2 {[%clk 0:00:09]}  Kb8 {[%clk 0:00:08]} 45. Bxg5 {[%clk 0:00:09]}  Rf8 {[%clk 0:00:06]} 46. h4 {[%clk 0:00:09]}  Re8 {[%clk 0:00:05]} 47. Qd5 {[%clk 0:00:09]}  Kc7 {[%clk 0:00:04]} 48. Qxd3 {[%clk 0:00:08]}  Qd6 {[%clk 0:00:03]} 49. Qc4 {[%clk 0:00:08]}  Qe5 {[%clk 0:00:03]} 50. b3 {[%clk 0:00:07]}  Qb2+ {[%clk 0:00:03]} 51. Kh3 {[%clk 0:00:08]}  Qe5 {[%clk 0:00:02]} 52. Qf7+ {[%clk 0:00:08]} 1-0


[Site "https://www.chess.com"]